fUST/lending_fUST_20240808
["ID","MTS","AMOUNT","RATE_DAILY","PERIOD"]
[334455595,1723116643012,-81084.78055903,0.00030348,5]
[334455596,1723116643030,-2100.0,0.0003035,7]
[334455597,1723116643042,-1162.06384113,0.00030358,2]
[334455598,1723116643053,-2000.0,0.00030358,2]
[334455600,1723116643065,-4937.13403151,0.00030358,120]
[334455642,1723116647376,-278.766,0.00028978,2]
[334455643,1723116647390,-3083.4316109,0.00030358,120]
[334455648,1723116815606,157.236515,0.00014247,2]
[334455652,1723117141659,729.4,0.00014247,2]
[334455653,1723117148301,3487.76861012,0.00014247,2]
[334455654,1723117174469,1669.01055043,0.00014247,2]
[334455655,1723117242924,938.22642531,0.00015746,2]
[334455656,1723117254678,729.4,0.00014247,2]
[334455657,1723117268844,1227.43003046,0.00015746,2]
[334455658,1723117337764,781.69723149,0.00015746,2]
[334455659,1723117351211,168.591439,0.00014247,2]
[334455661,1723117443693,781.69723149,0.00014247,2]
[334455663,1723117611395,781.69723149,0.00014247,2]
[334455664,1723117613161,-172.17444394,0.0002028,2]
[334455665,1723117613183,-57.94850074,0.0002028,7]
[334455666,1723117801962,160.400785,0.00014247,2]
[334455690,1723117832713,-938.22642531,0.00015953,2]
[334455817,1723117838961,-433.39214193,0.00015953,2]
[334455818,1723117839070,-432.85647337,0.00015953,2]
[334455838,1723117841261,-37886.41560139,0.00015953,2]
[334455839,1723117841271,-153.09388874,0.00016109,2]
[334455840,1723117841281,-500.0,0.00016109,2]
[334455841,1723117841292,-500.0,0.00016109,2]
[334455842,1723117841300,-375.25210898,0.00016109,2]
[334455843,1723117841310,-187.731852,0.00016109,2]
[334455844,1723117841319,-500.0,0.00016109,2]
[334455845,1723117841328,-365.59293641,0.00016109,2]
[334455846,1723117841337,-500.0,0.00016109,2]
[334455847,1723117841346,-500.0,0.00016109,2]
[334455848,1723117841356,-500.0,0.00016109,2]
[334455849,1723117841367,-500.0,0.00016109,2]
[334455850,1723117841378,-500.0,0.00016109,2]
[334455851,1723117841388,-500.0,0.00016109,2]
[334455852,1723117841397,-500.0,0.00016109,2]
[334455853,1723117841406,-625.41436574,0.00016109,2]
[334455854,1723117841415,-500.0,0.00016109,2]
[334455855,1723117841426,-9643.98087226,0.0001611,2]
[334455856,1723117841435,-9643.98087226,0.0001611,2]
[334455857,1723117841445,-3088.209172,0.00019477,2]
[334455858,1723117841454,-1042.0,0.00019999,2]
[334455859,1723117841464,-1042.0,0.00019999,2]
[334455860,1723117841473,-177.2801178,0.0002018,2]
[334455861,1723117841483,-173.59,0.0002027,3]
[334455862,1723117841492,-520.81,0.0002027,3]
[334455863,1723117841501,-500.0,0.00020279,2]
[334455864,1723117841512,-212.54094144,0.00020279,2]
[334455865,1723117841523,-500.0,0.00020279,2]
[334455866,1723117841534,-500.0,0.00020279,2]
[334455867,1723117841544,-500.0,0.00020279,2]
[334455868,1723117841554,-500.0,0.00020279,2]
[334455869,1723117841565,-500.0,0.00020279,2]
[334455870,1723117841574,-167.73511378,0.00020279,2]
[334455871,1723117841583,-500.0,0.00020279,2]
[334455872,1723117841593,-500.0,0.00020279,2]
[334455873,1723117841604,-396.10830553,0.0002028,2]
[334455874,1723117841615,-331400.91144865,0.0002028,2]
[334455875,1723117841625,-308.87381917,0.00020621,2]
[334455876,1723117841635,-347.18,0.0002164,3]
[334455877,1723117841647,-542.48310742,0.00021906,2]
[334455878,1723117841661,-269.54909522,0.00021916,7]
[334455879,1723117841670,-952.22238647,0.00021916,2]
[334455880,1723117841682,-500.0,0.00024581,2]
[334455881,1723117841692,-472.12044886,0.00024581,2]
[334455882,1723117841702,-704.81645422,0.00024581,2]
[334455883,1723117841711,-1763.75242219,0.00024581,2]
[334455884,1723117841722,-180.82691021,0.00024581,2]
[334455885,1723117841735,-154.88961185,0.00024581,2]
[334455886,1723117841746,-4183.4711297,0.00024581,2]
[334455887,1723117841756,-1626.61800287,0.00024581,2]
[334455888,1723117841767,-1795.39299841,0.00024581,2]
[334455889,1723117841777,-513.61347926,0.00024581,2]
[334455890,1723117841788,-154.9150861,0.00024581,2]
[334455891,1723117841797,-209.86227882,0.00024581,2]
[334455892,1723117841806,-9588.81216364,0.00024581,2]
[334455893,1723117841816,-694.06857466,0.00024581,2]
[334455894,1723117841827,-664.5582695,0.00024581,2]
[334455895,1723117841837,-1536.72351208,0.00024581,2]
[334455896,1723117841847,-356.53097519,0.00024581,2]
[334455897,1723117841856,-932.36255016,0.00024581,2]
[334455898,1723117841866,-1611.38995866,0.00024581,2]
[334455899,1723117841876,-2617.63546734,0.00024581,2]
[334455900,1723117841886,-1758.82902607,0.00024581,2]
[334455901,1723117841895,-1500.0,0.00024581,2]
[334455902,1723117841906,-1128.93746315,0.00024581,2]
[334455903,1723117841915,-2162.90546762,0.00024581,2]
[334455904,1723117841925,-346.63902814,0.00024581,7]
[334455905,1723117841934,-219.1840785,0.00024581,2]
[334455906,1723117841944,-808.14934153,0.00024581,2]
[334455907,1723117841954,-5238.95624179,0.00024581,2]
[334455908,1723117841964,-1091.69139402,0.00024581,2]
[334455909,1723117841973,-155.52327347,0.00024581,2]
[334455910,1723117841983,-155.14905259,0.00024581,2]
[334455911,1723117841992,-1163.36571829,0.00024581,2]
[334455912,1723117842002,-1109.04434069,0.00024581,2]
[334455913,1723117842011,-188.24924053,0.00024581,2]
[334455914,1723117842021,-311.02913928,0.00025,2]
[334455915,1723117842031,-24900.0,0.00025977,2]
[334455916,1723117842043,-200.0,0.00026027,2]
[334455917,1723117842053,-160.400785,0.00026521,2]
[334455918,1723117842063,-305.65463372,0.00027396,2]
[334455919,1723117842074,-2605.08504403,0.00027396,2]
[334455920,1723117842084,-917.28994636,0.00027405,2]
[334455921,1723117842093,-150.0,0.000276,2]
[334455922,1723117842103,-200.0,0.00027622,5]
[334455923,1723117842113,-200.0,0.00027622,5]
[334455924,1723117842123,-200.0,0.00027622,5]
[334455925,1723117842132,-200.0,0.00027622,5]
[334455926,1723117842142,-200.0,0.00027622,5]
[334455927,1723117842152,-153.0,0.0002856,2]
[334455928,1723117842163,-153.0,0.0002856,2]
[334455929,1723117842174,-153.0,0.0002856,2]
[334455930,1723117842183,-153.0,0.0002856,2]
[334455931,1723117842193,-153.0,0.0002856,2]
[334455932,1723117842203,-153.0,0.0002856,2]
[334455933,1723117842213,-153.0,0.0002856,2]
[334455934,1723117842224,-153.0,0.0002856,2]
[334455935,1723117842235,-153.0,0.0002856,2]
[334455936,1723117842248,-153.0,0.0002856,2]
[334455937,1723117842257,-153.0,0.0002856,2]
[334455938,1723117842268,-153.0,0.0002856,2]
[334455939,1723117842278,-153.0,0.0002856,2]
[334455940,1723117842290,-153.0,0.0002856,2]
[334455941,1723117842299,-153.0,0.0002856,2]
[334455942,1723117842311,-153.0,0.0002856,2]
[334455943,1723117842321,-153.0,0.0002856,2]
[334455944,1723117842332,-153.0,0.0002856,2]
[334455945,1723117842343,-153.0,0.0002856,2]
[334455946,1723117842353,-153.0,0.0002856,2]
[334455947,1723117842364,-153.0,0.0002856,2]
[334455948,1723117842374,-153.0,0.0002856,2]
[334455949,1723117842384,-153.0,0.0002856,2]
[334455950,1723117842393,-153.0,0.0002856,2]
[334455951,1723117842402,-153.0,0.0002856,2]
[334455952,1723117842412,-153.0,0.0002856,2]
[334455953,1723117842422,-153.0,0.0002856,2]
[334455954,1723117842432,-153.0,0.0002856,2]
[334455955,1723117842441,-153.0,0.0002856,2]
[334455956,1723117842451,-153.0,0.0002856,2]
[334455957,1723117842461,-153.0,0.0002856,2]
[334455958,1723117842473,-153.0,0.0002856,2]
[334455959,1723117842483,-153.0,0.0002856,2]
[334455960,1723117842492,-153.0,0.0002856,2]
[334455961,1723117842502,-153.0,0.0002856,2]
[334455962,1723117842513,-153.0,0.0002856,2]
[334455963,1723117842524,-153.0,0.0002856,2]
[334455964,1723117842536,-153.0,0.0002856,2]
[334455965,1723117842547,-153.0,0.0002856,2]
[334455966,1723117842557,-153.0,0.0002856,2]
[334455967,1723117842567,-153.0,0.0002856,2]
[334455968,1723117842578,-153.0,0.0002856,2]
[334455969,1723117842588,-153.0,0.0002856,2]
[334455970,1723117842598,-153.0,0.0002856,2]
[334455971,1723117842608,-153.0,0.0002856,2]
[334455972,1723117842619,-153.0,0.0002856,2]
[334455973,1723117842630,-153.0,0.0002856,2]
[334455974,1723117842639,-153.0,0.0002856,2]
[334455975,1723117842648,-153.0,0.0002856,2]
[334455976,1723117842658,-153.0,0.0002856,2]
[334455977,1723117842671,-153.0,0.0002856,2]
[334455978,1723117842680,-153.0,0.0002856,2]
[334455979,1723117842689,-153.0,0.0002856,2]
[334455980,1723117842698,-153.0,0.0002856,2]
[334455981,1723117842707,-153.0,0.0002856,2]
[334455982,1723117842716,-153.0,0.0002856,2]
[334455983,1723117842725,-153.0,0.0002856,2]
[334455984,1723117842735,-153.0,0.0002856,2]
[334455985,1723117842746,-153.0,0.0002856,2]
[334455986,1723117842756,-153.0,0.0002856,2]
[334455987,1723117842767,-153.0,0.0002856,2]
[334455988,1723117842777,-153.0,0.0002856,2]
[334455989,1723117842788,-153.0,0.0002856,2]
[334455990,1723117842797,-153.0,0.0002856,2]
[334455991,1723117842806,-153.0,0.0002856,2]
[334455992,1723117842815,-153.0,0.0002856,2]
[334455993,1723117842825,-153.0,0.0002856,2]
[334455994,1723117842836,-153.0,0.0002856,2]
[334455995,1723117842847,-153.0,0.0002856,2]
[334455996,1723117842857,-153.0,0.0002856,2]
[334455997,1723117842867,-153.0,0.0002856,2]
[334455998,1723117842877,-153.0,0.0002856,2]
[334455999,1723117842887,-153.0,0.0002856,2]
[334456000,1723117842897,-153.0,0.0002856,2]
[334456001,1723117842906,-153.0,0.0002856,2]
[334456002,1723117842916,-153.0,0.0002856,2]
[334456003,1723117842927,-153.0,0.0002856,2]
[334456004,1723117842936,-153.0,0.0002856,2]
[334456005,1723117842946,-153.0,0.0002856,2]
[334456006,1723117842956,-153.0,0.0002856,2]
[334456007,1723117842965,-153.0,0.0002856,2]
[334456008,1723117842975,-153.0,0.0002856,2]
[334456009,1723117842985,-153.0,0.0002856,2]
[334456010,1723117842995,-153.0,0.0002856,2]
[334456011,1723117843007,-153.0,0.0002856,2]
[334456012,1723117843019,-153.0,0.0002856,2]
[334456013,1723117843030,-153.0,0.0002856,2]
[334456014,1723117843042,-153.0,0.0002856,2]
[334456015,1723117843051,-153.0,0.0002856,2]
[334456016,1723117843063,-153.0,0.0002856,2]
[334456017,1723117843074,-153.0,0.0002856,2]
[334456018,1723117843085,-153.0,0.0002856,2]
[334456019,1723117843095,-153.0,0.0002856,2]
[334456020,1723117843105,-153.0,0.0002856,2]
[334456021,1723117843115,-153.0,0.0002856,2]
[334456022,1723117843124,-153.0,0.0002856,2]
[334456023,1723117843135,-300.0,0.000287,14]
[334456024,1723117843146,-150.0,0.00028985,2]
[334456025,1723117843156,-645.62,0.00028985,2]
[334456026,1723117843166,-1412.0,0.00028985,2]
[334456027,1723117843176,-213.771,0.00028985,2]
[334456028,1723117843185,-400.0,0.00028992,5]
[334456029,1723117843194,-400.0,0.00028992,5]
[334456031,1723117843205,-400.0,0.00028992,5]
[334456033,1723117843214,-400.0,0.00028992,5]
[334456035,1723117843224,-400.0,0.00028992,5]
[334456036,1723117843234,-4600.0,0.00029,2]
[334456037,1723117843244,-3300.0,0.00029267,2]
[334456038,1723117843255,-4600.0,0.00029316,2]
[334456039,1723117843266,-4600.0,0.00029348,2]
[334456040,1723117843277,-3300.0,0.0002937,2]
[334456041,1723117843289,-4700.0,0.00029401,2]
[334456043,1723117843299,-4700.0,0.00029651,2]
[334456044,1723117843308,-2100.0,0.00029676,2]
[334456047,1723117843318,-30805.9660787,0.00029711,3]
[334456049,1723117843328,-3300.0,0.00029721,2]
[334456050,1723117843338,-1196.49689044,0.0002975,2]
[334456051,1723117843348,-4700.0,0.00029769,2]
[334456052,1723117843358,-151.0,0.00029773,5]
[334456054,1723117843368,-168.46130497,0.00029814,2]
[334456055,1723117843378,-5000.0,0.00029863,2]
[334456057,1723117843388,-5000.0,0.00029863,2]
[334456058,1723117843401,-969.48493059,0.00029863,2]
[334456059,1723117843411,-1196.49689041,0.00029877,2]
[334456060,1723117843420,-30805.9660787,0.00029879,3]
[334456061,1723117843429,-4700.0,0.00029889,2]
[334456062,1723117843438,-156.66360956,0.000299,2]
[334456063,1723117843449,-150.112234,0.000299,7]
[334456064,1723117843459,-2000.0,0.00029913,2]
[334456065,1723117843468,-198.72501535,0.00029934,2]
[334456066,1723117843482,-718.56493098,0.00029934,2]
[334456067,1723117843493,-254.96952233,0.0003,5]
[334456068,1723117843502,-385.20792071,0.0003,4]
[334456069,1723117843512,-154.74467129,0.0003,5]
[334456070,1723117843522,-150.112234,0.0003,9]
[334456071,1723117843736,-258.0,0.0003,2]
[334456072,1723117843747,-223.0,0.0003,2]
[334456073,1723117843760,-1656.50292964,0.0003,2]
[334456074,1723117843771,-1196.49689041,0.00030004,2]
[334456075,1723117843783,-151.40529374,0.00030034,2]
[334456076,1723117843793,-5000.0,0.00030124,7]
[334456077,1723117843803,-1196.49689041,0.0003013,2]
[334456078,1723117843814,-3300.0,0.00030133,7]
[334456079,1723117843825,-500.0,0.00030158,7]
[334456080,1723117843836,-30805.9660787,0.00030248,4]
[334456081,1723117843847,-19881.97760355,0.00030248,5]
[334456082,1723117843857,-2000.0,0.00030248,2]
[334456083,1723117843867,-1196.49689041,0.00030257,2]
[334456084,1723117843877,-3300.0,0.0003027,7]
[334456085,1723117843886,-151.0,0.00030286,6]
[334456086,1723117843898,-151.0,0.00030286,6]
[334456087,1723117843908,-3532.81788192,0.000303,30]
[334456088,1723117843920,-2100.0,0.00030316,7]
[334456089,1723117843931,-23168.08039884,0.00030348,11]
[334456090,1723117843940,-151.0,0.00030348,7]
[334456091,1723117843952,-151.0,0.00030348,7]
[334456092,1723117843963,-627.789298,0.00030348,7]
[334456093,1723117843974,-627.789298,0.00030348,7]
[334456094,1723117843983,-684.813302,0.00030348,7]
[334456095,1723117843993,-684.813302,0.00030348,7]
[334456097,1723117844003,-123.93575589,0.00030348,7]
[334456105,1723117844217,-25.56921608,0.00021916,2]
[334456111,1723117846919,-132.03083625,0.00021916,2]
[334456112,1723117846928,-192.26710228,0.00021916,2]
[334456113,1723117846938,-2125.48864548,0.00021916,2]
[334456114,1723117846948,-153.0,0.0002856,2]
[334456115,1723117846958,-150.0,0.00028985,2]
[334456116,1723117846967,-112.75379811,0.00030348,7]
[334456117,1723117846978,-151.0,0.00030348,7]
[334456118,1723117846988,-236.689554,0.00030348,7]
[334456119,1723117846998,-151.0,0.00030348,7]
[334456120,1723117847008,-151.0,0.00030348,7]
[334456121,1723117847018,-151.0,0.00030348,7]
[334456122,1723117847027,-611.57431,0.00030348,7]
[334456124,1723117847038,-611.57431,0.00030348,7]
[334456127,1723117847048,-392.983358,0.00030348,7]
[334456129,1723117847074,-392.983358,0.00030348,7]
[334456131,1723117847083,-447.480837,0.00030348,7]
[334456133,1723117847093,-159.784883,0.00030348,7]
[334456135,1723117847102,-159.784883,0.00030348,7]
[334456137,1723117847112,-447.480837,0.00030348,7]
[334456139,1723117847121,-159.784883,0.00030348,7]
[334456141,1723117847131,-159.784883,0.00030348,7]
[334456143,1723117847141,-55628.5317338,0.00030348,4]
[334456144,1723117978434,336.42276961,0.00016532,7]
[334456147,1723118164763,1206.83227907,0.00016532,7]
[334456148,1723118281060,168.791054,0.00014247,2]
[334456149,1723118356248,3768.90030183,0.00015711,2]
[334456150,1723118385452,184.707894,0.00014782,2]
[334456154,1723118695413,12674.8828069,0.0001471,2]
[334456155,1723118724504,816.16582707,0.0001,2]
[334456156,1723118734538,227.43235787,0.00014999,2]
[334456157,1723118737827,1042.0,0.00015,2]
[334456158,1723118760716,162.707692,0.00014247,2]
[334456159,1723118797763,1091.50397563,0.00014999,2]
[334456160,1723118814090,344.27180303,9.999e-05,2]
[334456161,1723118819298,951.94046237,0.00015,2]
[334456162,1723118823842,269.63517677,0.00014999,2]
[334456163,1723118848388,663.67437082,9.999e-05,2]
[334456164,1723118866127,684.28955178,9.999e-05,2]
[334456165,1723118867855,23198.0002469,0.00014709,2]
[334456235,1723119032046,-184.707895,0.00015201,2]
[334456237,1723119032055,-5238.95624179,0.00015708,2]
[334456239,1723119032066,-8090.19928765,0.00015708,2]
[334456241,1723119032078,-1963.73527,0.0001571,2]
[334456243,1723119032087,-1376.83176637,0.00016159,2]
[334456245,1723119032099,-159.27209445,0.00016347,2]
[334456247,1723119032111,-413.99267103,0.00016347,2]
[334456249,1723119032121,-168.095354,0.00016462,2]
[334456251,1723119032132,-168.095354,0.00016557,2]
[334456253,1723119032141,-168.095354,0.00016653,2]
[334456255,1723119032151,-168.095354,0.00016748,2]
[334456257,1723119032160,-168.095354,0.00016843,2]
[334456259,1723119032169,-168.095354,0.00016939,2]
[334456261,1723119032180,-168.095354,0.00017034,2]
[334456263,1723119032189,-168.095354,0.00017129,2]
[334456265,1723119032199,-2383.13815516,0.0001722,2]
[334456267,1723119032208,-168.095354,0.00017225,2]
[334456268,1723119032219,-15865.47962594,0.00017269,2]
[334456271,1723119032234,-168.095354,0.0001732,2]
[334456273,1723119032247,-1042.0,0.00017403,2]
[334456275,1723119032257,-932.82879349,0.00017829,2]
[334456277,1723119032267,-680.54898449,0.00017829,2]
[334456279,1723119032277,-241.51148239,0.00018825,2]
[334456281,1723119032287,-472.12044886,0.00019451,2]
[334456283,1723119032297,-156.99277567,0.00019451,2]
[334456285,1723119032306,-2039.58375937,0.0001989,2]
[334456287,1723119032315,-625.04604064,0.00019999,2]
[334456289,1723119032325,-158.99073727,0.0002,2]
[334456291,1723119032334,-298.64578678,0.0002,2]
[334456293,1723119032345,-1443.89362386,0.0002,2]
[334456295,1723119032354,-192.62832604,0.0002,2]
[334456297,1723119032364,-174.36861519,0.0002,2]
[334456299,1723119032373,-435.0,0.0002,2]
[334456300,1723119032385,-294.13159854,0.0002,2]
[334456301,1723119032395,-427.95722184,0.0002,2]
[334456302,1723119032404,-2395.09747727,0.0002,2]
[334456303,1723119032413,-6896.69376362,0.0002,2]
[334456304,1723119032423,-156.37509576,0.0002,2]
[334456305,1723119032432,-16911.56884222,0.00020998,2]
[334456306,1723119032442,-296.9978564,0.00021,2]
[334456307,1723119032452,-2383.13815509,0.00021243,2]
[334456308,1723119032461,-254.48424412,0.00022,2]
[334456309,1723119032470,-2039.58375934,0.00022358,2]
[334456310,1723119032480,-2039.58375934,0.00024827,2]
[334456311,1723119032490,-173.59,0.00025195,3]
[334456312,1723119032499,-13.16980351,0.00025265,2]
[334456333,1723119037992,-2369.96835158,0.00025265,2]
[334456334,1723119038002,-200.0,0.00026027,2]
[334456335,1723119038012,-162.707692,0.00026521,2]
[334456337,1723119038022,-347.18,0.00026565,3]
[334456338,1723119038035,-150.112235,0.000269,6]
[334456340,1723119038049,-520.8,0.00027094,3]
[334456342,1723119038059,-11300.09,0.00027094,3]
[334456344,1723119038070,-9416.75,0.00027094,3]
[334456346,1723119038080,-7847.29,0.00027094,3]
[334456348,1723119038092,-33371.3385075,0.00027104,3]
[334456350,1723119038103,-33371.3385075,0.00027124,3]
[334456352,1723119038115,-153.0,0.00027135,2]
[334456354,1723119038126,-153.0,0.00027135,2]
[334456356,1723119038137,-153.0,0.00027135,2]
[334456358,1723119038146,-153.0,0.00027135,2]
[334456360,1723119038157,-153.0,0.00027135,2]
[334456362,1723119038167,-153.0,0.00027135,2]
[334456364,1723119038177,-153.0,0.00027135,2]
[334456366,1723119038188,-153.0,0.00027135,2]
[334456367,1723119038199,-153.0,0.00027135,2]
[334456369,1723119038210,-153.0,0.00027135,2]
[334456371,1723119038220,-153.0,0.00027135,2]
[334456373,1723119038230,-153.0,0.00027135,2]
[334456374,1723119038241,-153.0,0.00027135,2]
[334456375,1723119038257,-153.0,0.00027135,2]
[334456376,1723119038267,-153.0,0.00027135,2]
[334456377,1723119038278,-153.0,0.00027135,2]
[334456378,1723119038288,-153.0,0.00027135,2]
[334456379,1723119038299,-153.0,0.00027135,2]
[334456380,1723119038309,-153.0,0.00027135,2]
[334456381,1723119038319,-153.0,0.00027135,2]
[334456383,1723119038329,-153.0,0.00027135,2]
[334456385,1723119038340,-153.0,0.00027135,2]
[334456387,1723119038350,-2039.58375934,0.00027295,2]
[334456389,1723119038360,-163.638053,0.00027362,2]
[334456391,1723119038370,-305.65463372,0.00027396,2]
[334456392,1723119038381,-2605.08504403,0.00027396,2]
[334456393,1723119038391,-625.30728935,0.00027479,2]
[334456394,1723119038401,-1412.0,0.00027718,2]
[334456395,1723119038411,-468.83987405,0.00027945,14]
[334456396,1723119038421,-200.0,0.00028236,5]
[334456397,1723119038431,-153.0,0.00028379,2]
[334456398,1723119038441,-153.0,0.00028379,2]
[334456399,1723119038451,-153.0,0.00028379,2]
[334456400,1723119038461,-153.0,0.00028379,2]
[334456401,1723119038472,-153.0,0.00028379,2]
[334456402,1723119038481,-153.0,0.00028379,2]
[334456403,1723119038491,-153.0,0.00028379,2]
[334456404,1723119038501,-153.0,0.00028379,2]
[334456405,1723119038511,-153.0,0.00028379,2]
[334456406,1723119038521,-153.0,0.00028379,2]
[334456407,1723119038531,-153.0,0.00028379,2]
[334456408,1723119038541,-153.0,0.00028379,2]
[334456409,1723119038551,-153.0,0.00028379,2]
[334456410,1723119038561,-153.0,0.00028379,2]
[334456411,1723119038571,-153.0,0.00028379,2]
[334456412,1723119038580,-153.0,0.00028379,2]
[334456413,1723119038590,-153.0,0.00028379,2]
[334456414,1723119038603,-153.0,0.00028379,2]
[334456415,1723119038613,-153.0,0.00028379,2]
[334456416,1723119038624,-153.0,0.00028379,2]
[334456417,1723119038639,-153.0,0.00028379,2]
[334456418,1723119038652,-153.0,0.00028379,2]
[334456419,1723119038662,-153.0,0.00028379,2]
[334456420,1723119038673,-153.0,0.00028379,2]
[334456421,1723119038682,-153.0,0.00028379,2]
[334456422,1723119038692,-153.0,0.00028379,2]
[334456423,1723119038702,-153.0,0.00028379,2]
[334456424,1723119038713,-153.0,0.00028379,2]
[334456425,1723119038723,-153.0,0.00028379,2]
[334456426,1723119038734,-153.0,0.00028379,2]
[334456427,1723119038744,-153.0,0.00028379,2]
[334456428,1723119038754,-153.0,0.00028379,2]
[334456429,1723119038765,-153.0,0.00028379,2]
[334456430,1723119038776,-153.0,0.00028379,2]
[334456431,1723119039002,-153.0,0.00028379,2]
[334456432,1723119039012,-153.0,0.00028379,2]
[334456433,1723119039022,-153.0,0.00028379,2]
[334456434,1723119039031,-153.0,0.00028379,2]
[334456435,1723119039046,-153.0,0.00028379,2]
[334456436,1723119039056,-153.0,0.00028379,2]
[334456437,1723119039066,-153.0,0.00028379,2]
[334456438,1723119039077,-153.0,0.00028379,2]
[334456439,1723119039087,-153.0,0.00028379,2]
[334456440,1723119039096,-153.0,0.00028379,2]
[334456441,1723119039106,-153.0,0.00028379,2]
[334456442,1723119039118,-153.0,0.00028379,2]
[334456443,1723119039127,-153.0,0.00028379,2]
[334456444,1723119039136,-153.0,0.00028379,2]
[334456445,1723119039146,-153.0,0.00028379,2]
[334456446,1723119039156,-153.0,0.00028379,2]
[334456447,1723119039165,-153.0,0.00028379,2]
[334456448,1723119039175,-153.0,0.00028379,2]
[334456449,1723119039185,-153.0,0.00028379,2]
[334456450,1723119039194,-153.0,0.00028379,2]
[334456451,1723119039204,-153.0,0.00028379,2]
[334456452,1723119039213,-153.0,0.00028379,2]
[334456453,1723119039222,-153.0,0.00028379,2]
[334456454,1723119039232,-153.0,0.00028379,2]
[334456455,1723119039241,-153.0,0.00028379,2]
[334456456,1723119039252,-153.0,0.00028392,2]
[334456457,1723119039261,-153.0,0.00028392,2]
[334456458,1723119039270,-153.0,0.00028392,2]
[334456459,1723119039280,-153.0,0.00028392,2]
[334456460,1723119039290,-153.0,0.00028392,2]
[334456461,1723119039299,-153.0,0.00028392,2]
[334456462,1723119039309,-153.0,0.00028392,2]
[334456463,1723119039319,-300.0,0.000287,14]
[334456464,1723119039328,-500.0,0.00028804,2]
[334456465,1723119039338,-235.76908111,0.00028867,2]
[334456466,1723119039348,-500.0,0.00028867,2]
[334456467,1723119039357,-195.84746376,0.00028867,2]
[334456468,1723119039367,-500.0,0.00028867,2]
[334456469,1723119039377,-500.0,0.00028867,2]
[334456470,1723119039387,-500.0,0.00028867,2]
[334456471,1723119039397,-500.0,0.00028867,2]
[334456472,1723119039406,-500.0,0.00028867,2]
[334456473,1723119039416,-500.0,0.00028867,2]
[334456474,1723119039425,-500.0,0.00028867,2]
[334456475,1723119039435,-500.0,0.00028867,2]
[334456476,1723119039445,-39146.41447306,0.00028868,11]
[334456477,1723119039455,-4700.0,0.00028868,2]
[334456478,1723119039464,-2100.0,0.00028944,2]
[334456479,1723119039474,-150.0,0.00028985,2]
[334456480,1723119039483,-645.62,0.00028985,2]
[334456481,1723119039493,-1000.0,0.00029,2]
[334456482,1723119039503,-150.112233,0.00029,9]
[334456483,1723119039513,-3100.0,0.00029037,2]
[334456484,1723119039522,-500.0,0.00029037,2]
[334456485,1723119039532,-3100.0,0.00029251,2]
[334456486,1723119039541,-2383.13815509,0.00029288,2]
[334456487,1723119039550,-33371.3385075,0.00029361,3]
[334456488,1723119039560,-2100.0,0.00029371,2]
[334456489,1723119039570,-2100.0,0.00029382,2]
[334456491,1723119039580,-4700.0,0.00029407,2]
[334456493,1723119039589,-500.0,0.00029448,2]
[334456495,1723119039600,-2100.0,0.00029461,2]
[334456497,1723119039610,-4700.0,0.0002952,2]
[334456499,1723119039620,-150.112233,0.000296,7]
[334456501,1723119039629,-200.99530001,0.00029606,5]